bitfinex-derivatives/quotes_SOLF0:USTF0_20250523
["timestamp","ask_amount","ask_price","bid_price","bid_amount"]
[1748031710392,0.03632255,177.97,177.94,0.03554332]
[1748031710894,0.03632255,177.97,177.95,5.6184]
[1748031711191,5.65422255,177.97,177.95,5.6184]
[1748031715595,0.03632255,177.97,177.96,5.6181]
[1748031715992,5.14835525,178.0,177.95,115.22]
[1748031716193,5.14835525,178.0,177.99,5.6172]
[1748031716494,5.14835525,178.0,177.99,112.3972]
[1748031717197,5.14835525,178.03,177.99,106.78]
[1748031717396,5.14835525,178.03,177.99,222.0]
[1748031717601,5.14835525,178.03,178.02,5.6162]
[1748031719498,0.03908327,178.04,178.02,5.6162]
[1748031720501,0.03908327,178.04,178.03,5.6159]
[1748031724611,0.03908327,178.04,178.03,162.6159]
[1748031725506,0.03908327,178.04,178.03,277.7959]
[1748031728505,5.14835525,178.11,178.03,287.68671539]
[1748031728713,2.10035525,178.11,178.07,9.88671539]
[1748031729006,2.10035525,178.11,178.1,5.6137]
[1748031730714,0.04294716,178.12,178.09,0.03679377]
[1748031730715,0.04294716,178.12,178.11,5.6134]
[1748031732009,115.18,178.2,178.15,5.612]
[1748031732304,5.611,178.19,178.14,106.72]
[1748031732513,10.75276457,178.22,178.14,106.72]
[1748031732707,10.75276457,178.22,178.16,5.6116]
[1748031733014,0.0382517,178.21,178.17,0.03954345]
[1748031733216,5.6108,178.2,178.17,0.03954345]
[1748031734512,5.611,178.19,178.17,0.03954345]
[1748031734818,0.0382517,178.21,178.17,0.03954345]
[1748031735315,5.6111,178.19,178.17,0.03954345]
[1748031736317,5.6112,178.18,178.17,0.03954345]
[1748031740914,5.611,178.19,178.17,0.03954345]
[1748031741112,0.0382517,178.21,178.17,0.03954345]
[1748031741314,0.0382517,178.21,178.19,5.6106]
[1748031741510,0.0382517,178.21,178.17,0.03954345]
[1748031742020,5.6108,178.2,178.17,5.65104345]
[1748031742324,0.0382517,178.21,178.17,5.65104345]
[1748031742619,0.0382517,178.21,178.19,5.6107]
[1748031744023,0.0382517,178.21,178.2,5.6105]
[1748031744218,0.0382517,178.21,178.17,0.03954345]
[1748031744522,0.0382517,178.21,178.19,5.6108]
[1748031745726,5.6485517,178.21,178.18,5.6111]
[1748031747627,0.0382517,178.21,178.19,5.6108]
[1748031748426,0.0382517,178.21,178.17,106.69954345]
[1748031748827,0.0382517,178.21,178.19,5.6107]
[1748031749123,0.0382517,178.21,178.17,106.69954345]
[1748031749729,5.6484517,178.21,178.18,5.6111]
[1748031750026,5.6484517,178.21,178.17,106.69954345]
[1748031750326,0.0382517,178.21,178.19,5.6109]
[1748031752027,0.0382517,178.21,178.2,5.6105]
[1748031752726,116.8297,178.29,178.19,114.92]
[1748031753229,5.6086,178.27,178.23,5.6094]
[1748031753625,5.65112882,178.27,178.23,5.64659598]
[1748031753826,5.6087,178.26,178.23,5.64659598]
[1748031754025,0.04252882,178.27,178.24,106.64]
[1748031754530,0.04252882,178.27,178.25,5.609]
[1748031754931,0.04252882,178.27,178.24,106.64]
[1748031755623,0.04252882,178.27,178.25,5.609]
[1748031757026,0.04252882,178.27,178.26,5.6087]
[1748031758536,0.04252882,178.27,178.25,5.6089]
[1748031759543,0.04252882,178.27,178.26,5.6087]
[1748031763344,1.9097,178.36,178.3,5.6072]
[1748031763534,5.6065,178.33,178.3,112.2072]
[1748031763730,1.9097,178.36,178.3,112.2072]
[1748031763945,5.6062,178.34,178.3,112.2072]
[1748031764246,0.03817874,178.34,178.3,106.64295485]
[1748031765544,0.03817874,178.34,178.33,5.6064]
[1748031766946,0.03817874,178.34,178.3,106.64295485]
[1748031767447,0.03817874,178.34,178.31,5.6069]
[1748031767748,0.03817874,178.34,178.3,106.64295485]
[1748031767946,0.03817874,178.34,178.32,5.6067]
[1748031769043,0.03817874,178.34,178.33,5.6065]
[1748031769245,0.03817874,178.34,178.3,106.64295485]
[1748031769948,5.64437874,178.34,178.31,5.6069]
[1748031770248,0.03817874,178.34,178.31,5.6069]
[1748031770749,5.64447874,178.34,178.31,5.6069]
[1748031771847,5.6066,178.33,178.3,112.25025485]
[1748031772148,0.03817874,178.34,178.3,0.04295485]
[1748031772548,5.6065,178.33,178.3,5.65015485]
[1748031772947,0.03817874,178.34,178.3,0.04295485]
[1748031773641,5.6071,178.31,178.3,0.04295485]
[1748031774148,3.9574,178.33,178.25,221.26]
[1748031774747,5.6082,178.28,178.25,221.26]
[1748031774941,5.6082,178.28,178.25,221.29904908]
[1748031775145,5.65086263,178.28,178.25,221.29904908]
[1748031775748,5.65086263,178.28,178.25,226.90804908]
[1748031775953,5.6083,178.27,178.25,221.29904908]
[1748031776143,0.04266263,178.28,178.25,221.29904908]
[1748031776344,0.04266263,178.28,178.25,114.73904908]
[1748031776840,5.6086,178.27,178.25,114.73904908]
[1748031777146,0.04266263,178.28,178.25,114.73904908]
[1748031777346,5.6087,178.26,178.25,0.03904908]
[1748031778752,5.6085,178.27,178.25,0.03904908]
[1748031778954,0.04266263,178.28,178.25,0.03904908]
[1748031780561,5.65076263,178.28,178.25,5.64774908]
[1748031781153,5.65076263,178.28,178.25,0.03904908]
[1748031781546,5.6084,178.27,178.25,0.03904908]
[1748031783557,5.6087,178.26,178.25,0.03904908]
[1748031784161,5.61,178.22,178.17,114.72]
[1748031784352,114.72,178.26,178.18,5.6109]
[1748031784552,5.6103,178.21,178.18,5.6109]
[1748031784754,114.72,178.26,178.17,114.72]
[1748031784958,114.72,178.26,178.2,0.04205359]
[1748031784959,0.03828923,178.23,178.2,0.04205359]
[1748031785255,0.03828923,178.23,178.13,5.23096733]
[1748031785256,114.74,178.22,178.13,5.23096733]
[1748031785455,114.74,178.22,178.14,5.6123]
[1748031785657,5.6114,178.18,178.14,5.6123]
[1748031786155,0.04318265,178.18,178.14,5.6123]
[1748031786358,5.65438265,178.18,178.14,5.6517033]
[1748031786761,0.04318265,178.18,178.14,0.0394033]
[1748031787263,0.04318265,178.18,178.15,5.6121]
[1748031787662,0.04318265,178.18,178.14,0.0394033]
[1748031787856,0.04318265,178.18,178.17,5.6115]
[1748031790867,0.04318265,178.18,178.16,5.6117]
[1748031792769,0.04318265,178.18,178.17,5.6115]
[1748031797173,114.66,178.26,178.21,5.6101]
[1748031798172,5.64815339,178.25,178.22,0.03653072]
[1748031798473,0.03915339,178.25,178.22,0.03653072]
[1748031799573,5.6096,178.23,178.22,0.03653072]
[1748031801274,5.6115,178.17,178.15,157.0]
[1748031801476,5.6115,178.17,178.14,5.6123]
[1748031801672,114.66,178.22,178.12,114.66]
[1748031801877,114.66,178.22,178.15,5.6121]
[1748031802273,0.03659036,178.2,178.17,0.03640359]
[1748031803279,5.6112,178.18,178.17,0.03640359]
[1748031803477,0.03659036,178.2,178.17,0.03640359]
[1748031804071,0.03659036,178.2,178.19,5.6109]
[1748031805680,0.03659036,178.2,178.18,5.6111]
[1748031805881,0.03659036,178.2,178.17,0.03640359]
[1748031806277,0.03659036,178.2,178.18,5.6112]
[1748031806477,0.03659036,178.2,178.17,0.03640359]
[1748031807081,0.03659036,178.2,178.19,5.6109]
[1748031809084,0.03659036,178.2,178.18,5.611]
[1748031810283,5.64719036,178.2,178.18,5.611]
[1748031810582,0.03659036,178.2,178.18,5.611]
[1748031811582,0.03659036,178.2,178.19,5.6109]
[1748031811780,0.03659036,178.2,178.17,0.03640359]
[1748031812280,0.03659036,178.2,178.18,5.611]
[1748031812580,0.03659036,178.2,178.17,0.03640359]
[1748031813082,0.03659036,178.2,178.18,5.6112]
[1748031814186,0.03659036,178.2,178.19,5.6109]
[1748031814486,0.03659036,178.2,178.17,0.03640359]
[1748031815187,5.6112,178.18,178.17,0.03640359]
[1748031819290,5.6109,178.19,178.17,0.03640359]
[1748031819483,0.03659036,178.2,178.17,0.03640359]
[1748031819789,5.611,178.19,178.17,0.03640359]
[1748031821091,5.6112,178.18,178.17,0.03640359]
[1748031823994,0.03659036,178.2,178.17,0.03640359]
[1748031823995,5.611,178.19,178.17,0.03640359]
[1748031824692,5.6112,178.18,178.17,0.03640359]
[1748031827190,120.1312,178.18,178.17,0.03640359]
[1748031827393,5.6125,178.14,178.12,114.66]
[1748031827599,5.6125,178.14,178.1,1.8726]
[1748031827893,5.6125,178.14,178.11,5.6132]
[1748031828388,5.65458792,178.14,178.12,5.613]
[1748031828591,0.04208792,178.14,178.11,0.04138697]
[1748031828991,0.04208792,178.14,178.13,5.6127]
[1748031830097,0.04208792,178.14,178.11,0.04138697]
[1748031831097,5.65468792,178.14,178.11,5.65458697]
[1748031831299,0.04208792,178.14,178.11,0.04138697]
[1748031831795,5.6129,178.13,178.11,0.04138697]
[1748031832090,0.04208792,178.14,178.11,0.04138697]
[1748031832697,5.6131,178.12,178.11,0.04138697]
[1748031836501,114.58208792,178.14,178.11,0.04138697]
[1748031836685,0.04208792,178.14,178.11,0.04138697]
[1748031836890,0.04208792,178.14,178.13,5.6127]
[1748031847800,0.04208792,178.14,178.13,112.2727]
[1748031851309,0.04208792,178.14,178.13,269.2727]
[1748031852923,8.792e-05,178.14,178.13,269.2727]
[1748031858221,114.56,178.22,178.21,5.6102]
[1748031858424,6.84626457,178.25,178.21,5.6102]
[1748031858725,12.45526457,178.25,178.22,5.6098]
[1748031859025,6.84626457,178.25,178.16,114.4]
[1748031859222,6.88735648,178.25,178.22,0.04157416]
[1748031859518,0.04109191,178.25,178.24,5.6093]
[1748031864925,0.04109191,178.25,178.24,119.9693]
[1748031870630,0.04109191,178.25,178.24,276.9693]
[1748031871730,0.04109191,178.25,178.22,0.04157416]
[1748031872132,0.04109191,178.25,178.16,220.96]
[1748031872430,114.38109191,178.25,178.17,5.6113]
[1748031872730,114.38109191,178.25,178.2,5.6104]
[1748031873332,5.6093,178.24,178.21,0.04121642]
[1748031873729,114.38109191,178.25,178.21,0.04121642]
[1748031874130,5.6096,178.23,178.21,0.04121642]
[1748031874530,114.38109191,178.25,178.14,5.23096733]
[1748031874735,5.6108,178.2,178.14,5.23096733]
[1748031874925,5.6108,178.2,178.11,124.22671539]
[1748031875336,3.8934,178.24,178.11,124.22671539]
[1748031875527,3.8934,178.24,178.16,0.03767021]
[1748031875835,0.04113275,178.19,178.16,114.39767021]
[1748031876136,0.04113275,178.19,178.18,5.6109]
[1748031883841,0.04113275,178.19,178.17,5.6113]
[1748031887047,0.04113275,178.19,178.16,114.39767021]
[1748031887745,0.04113275,178.19,178.18,5.6112]
[1748031896151,0.04113275,178.19,178.17,5.6113]
[1748031896350,0.04113275,178.19,178.16,114.39767021]
[1748031896653,0.04113275,178.19,178.17,5.6113]
[1748031897557,0.04113275,178.19,178.18,5.6112]
[1748031901552,5.6114,178.18,178.16,114.39767021]
[1748031902159,5.6115,178.17,178.16,0.03767021]
[1748031905859,114.32113275,178.19,178.09,599.14]
[1748031906062,5.8212,178.18,178.09,599.14]
[1748031906762,0.04208644,178.15,178.12,0.0401568]
[1748031907362,0.04208644,178.15,178.14,5.6122]
[1748031911259,0.04208644,178.15,178.12,0.0401568]
[1748031912064,5.65438644,178.15,178.13,5.6126]
[1748031912967,0.04208644,178.15,178.12,5.6530568]
[1748031913365,0.04208644,178.15,178.12,0.0401568]
[1748031913565,5.6127,178.14,178.12,0.0401568]
[1748031914461,5.6127,178.13,178.12,0.0401568]
[1748031917963,114.36208644,178.15,178.05,114.32]
[1748031918169,124.20671539,178.15,178.05,114.32]
[1748031918368,124.20671539,178.15,178.06,5.6147]
[1748031918671,5.6142,178.09,178.06,5.6147]
[1748031918968,5.65484176,178.09,178.06,5.65021145]
[1748031919269,0.04064176,178.09,178.06,0.03551145]
[1748031919671,0.04064176,178.09,178.08,5.6143]
[1748031923973,0.04064176,178.09,178.07,5.6146]
[1748031924474,0.04064176,178.09,178.08,5.6143]
[1748031925374,0.04064176,178.09,178.07,5.6145]
[1748031926574,5.65464176,178.09,178.07,5.6145]
[1748031926877,0.04064176,178.09,178.07,5.6145]
[1748031927072,0.04064176,178.09,178.08,5.6143]
[1748031929073,0.04064176,178.09,178.06,0.03551145]
[1748031929074,0.04064176,178.09,178.07,5.6145]
[1748031929374,0.04064176,178.09,178.06,0.03551145]
[1748031930277,5.65464176,178.09,178.06,5.65031145]
[1748031930775,5.6146,178.07,178.06,0.03551145]
[1748031931165,1.8729,178.08,177.99,114.24]
[1748031931765,5.6158,178.04,178.01,5.6163]
[1748031932073,0.0402509,178.04,178.01,0.0373742]
[1748031932379,0.0402509,178.04,178.02,5.6161]
[1748031933479,0.0402509,178.04,178.01,5.6537742]
[1748031933782,5.6559509,178.04,178.01,5.6537742]
[1748031934082,5.6559509,178.04,178.02,5.6162]
[1748031935580,5.6159,178.03,178.01,0.0373742]
[1748031937892,5.6162,178.02,178.01,0.0373742]
[1748031942191,0.0402509,178.04,178.01,0.0373742]
[1748031943394,5.6560509,178.04,178.01,0.0373742]
[1748031944596,5.6560509,178.04,178.01,5.6538742]
[1748031945598,5.6159,178.03,178.01,0.0373742]
[1748031946495,0.0402509,178.04,178.01,0.0373742]
[1748031947192,0.0402509,178.04,178.03,5.6159]
[1748031947892,0.0402509,178.04,178.02,5.6161]
[1748031950500,0.0402509,178.04,178.01,0.0373742]
[1748031952102,0.0402509,178.04,178.02,5.6159]
[1748031952503,0.0402509,178.04,178.01,0.0373742]
[1748031952703,0.0402509,178.04,178.03,5.6159]
[1748031955311,0.0402509,178.04,178.02,5.6161]
[1748031956711,0.0402509,178.04,178.01,5.6537742]
[1748031958216,0.0402509,178.04,178.02,5.6162]
[1748031959920,0.0402509,178.04,178.03,5.6159]
[1748031960105,0.0402509,178.04,178.01,0.0373742]
[1748031960515,0.0402509,178.04,178.02,5.6159]
[1748031960825,0.0402509,178.04,178.01,0.0373742]
[1748031961923,0.0402509,178.04,178.02,5.6162]
[1748031962221,0.0402509,178.04,178.01,0.0373742]
[1748031962418,0.0402509,178.04,178.02,106.74]
[1748031962623,0.0402509,178.04,178.02,108.5878]
[1748031963621,0.0402509,178.04,178.03,5.6159]
[1748031965726,0.0402509,178.04,178.02,112.3561]
[1748031966420,0.0402509,178.04,178.02,106.74]
[1748031966421,5.6558509,178.04,178.02,106.74]
[1748031966620,0.0402509,178.04,178.02,106.74]
[1748031967527,0.0402509,178.04,178.03,5.6159]
[1748031967728,0.0402509,178.04,178.02,106.74]
[1748031968032,0.0402509,178.04,178.03,5.6159]
[1748031970430,0.0402509,178.04,178.02,106.74]
[1748031970632,0.0402509,178.04,178.01,0.0373742]
[1748031971631,5.6162,178.02,178.01,0.0373742]
[1748031976431,5.616,178.03,178.01,0.0373742]
[1748031976733,0.0402509,178.04,178.01,0.0373742]
[1748031977037,5.6560509,178.04,178.01,5.6537742]
[1748031977435,5.6560509,178.04,178.01,0.0373742]
[1748031977637,5.616,178.03,178.01,0.0373742]
[1748031980038,5.6162,178.02,178.01,0.0373742]
[1748031982239,5.616,178.03,178.01,0.0373742]
[1748031983741,5.6162,178.02,178.01,0.0373742]
[1748031987241,5.6175,177.98,177.94,119.29096733]
[1748031987449,5.6175,177.98,177.95,5.6182]
[1748031988146,5.6179,177.97,177.95,5.6182]
[1748031991853,5.65965446,177.98,177.95,5.6182]
[1748031992251,0.04205446,177.98,177.94,119.71505942]
[1748031992554,5.618,177.97,177.94,114.09645942]
[1748031993259,5.65955446,177.98,177.94,114.09645942]
[1748031994451,0.04205446,177.98,177.94,114.09645942]
[1748031995561,0.04205446,177.98,177.96,5.6178]
[1748031997165,5.65955446,177.98,177.96,5.6178]
[1748031998365,0.04205446,177.98,177.96,5.6178]
[1748031999367,0.04205446,177.98,177.97,5.6178]
[1748031999661,6.34306651,178.07,177.97,6.34306651]
[1748031999863,6.34306651,178.07,178.02,5.616]
[1748032000265,12.46712664,178.05,178.03,5.6159]
[1748032001266,6.85172664,178.05,178.03,5.6159]
[1748032001464,6.85172664,178.05,178.04,5.6156]
[1748032003563,0.04252414,178.06,178.05,5.6153]
[1748032005170,0.04252414,178.06,178.04,5.6155]
[1748032005467,0.04252414,178.06,178.02,0.03594658]
[1748032005769,5.65752414,178.06,178.03,5.6156]
[1748032006267,0.04252414,178.06,178.04,5.6154]
[1748032006771,0.04252414,178.06,178.02,0.03594658]
[1748032007767,0.04252414,178.06,178.05,5.6153]
[1748032007966,0.04252414,178.06,178.02,0.03594658]
[1748032008165,0.04252414,178.06,178.04,5.6153]
[1748032008366,0.04252414,178.06,178.02,0.03594658]
[1748032008670,0.04252414,178.06,178.04,5.6153]
[1748032009074,0.04252414,178.06,178.02,0.03594658]
[1748032009871,0.04252414,178.06,178.05,5.6153]
[1748032010071,0.04252414,178.06,178.02,0.03594658]
[1748032011475,0.04252414,178.06,178.03,106.72]
[1748032011675,0.04252414,178.06,178.02,0.03594658]
[1748032011971,5.6159,178.03,178.02,0.03594658]
[1748032012874,0.04252414,178.06,178.02,0.03594658]
[1748032014079,5.6154,178.05,178.02,5.65214658]
[1748032015177,5.6156,178.04,178.02,5.65214658]
[1748032015366,0.04252414,178.06,178.02,0.03594658]
[1748032015977,5.6158,178.04,178.02,0.03594658]
[1748032016981,5.6158,178.04,178.02,5.65204658]
[1748032017279,5.6155,178.05,178.02,5.65204658]
[1748032020085,0.04252414,178.06,178.04,5.6156]
[1748032020380,0.04252414,178.06,178.02,0.03594658]
[1748032020681,5.65762414,178.06,178.03,5.6157]
[1748032021280,5.6153,178.05,178.03,5.6157]
[1748032021480,0.04252414,178.06,178.02,0.03594658]
[1748032021883,5.6158,178.04,178.02,0.03594658]
[1748032022077,0.04252414,178.06,178.02,0.03594658]
[1748032022287,9.9009699,178.05,178.02,0.03594658]
[1748032022579,11.7696699,178.05,177.94,231.78572955]
[1748032022780,15.6296699,178.05,177.94,231.78572955]
[1748032023075,5.6175,177.98,177.96,5.6181]
[1748032023680,5.6175,177.98,177.95,5.65790626]
[1748032024087,5.6175,177.98,177.95,0.03970626]
[1748032025584,5.6175,177.98,177.96,5.6181]
[1748032026085,5.6175,177.98,177.95,5.65800626]
[1748032026678,5.6178,177.97,177.95,0.03970626]
[1748032026881,0.03759481,177.99,177.95,0.03970626]
[1748032027279,5.6181,177.96,177.95,0.03970626]
[1748032028183,5.6179,177.97,177.95,0.03970626]
[1748032030184,0.03759481,177.99,177.95,0.03970626]
[1748032031480,0.03759481,177.99,177.98,5.6175]
[1748032031881,0.03759481,177.99,177.95,0.03970626]
[1748032032080,5.6175,177.98,177.95,5.65800626]
[1748032033286,5.65489481,177.99,177.96,5.6181]
[1748032033487,0.03759481,177.99,177.95,0.03970626]
[1748032033787,5.65479481,177.99,177.96,5.6178]
[1748032036692,0.03759481,177.99,177.95,0.03970626]
[1748032038692,5.6178,177.97,177.95,5.65810626]
[1748032040591,5.6175,177.98,177.95,5.65810626]
[1748032040895,5.6175,177.98,177.96,5.618]
[1748032041095,0.03759481,177.99,177.96,5.618]
[1748032041597,0.03759481,177.99,177.95,5.65800626]
[1748032041903,5.6177,177.98,177.95,5.65800626]
[1748032043499,5.6178,177.97,177.95,5.65800626]
[1748032044299,5.6178,177.97,177.95,0.03970626]
[1748032044599,5.6181,177.96,177.95,0.03970626]
[1748032045999,0.03759481,177.99,177.95,0.03970626]
[1748032046300,0.03759481,177.99,177.96,5.6179]
[1748032046800,5.65499481,177.99,177.96,5.6179]
[1748032051298,0.03759481,177.99,177.95,0.03970626]
[1748032051804,6.84520256,178.05,177.96,116.6609699]
[1748032052404,6.84520256,178.05,178.03,5.6156]
[1748032052607,6.84520256,178.05,177.99,113.84]
[1748032052805,0.04089683,178.04,178.0,0.03607181]
[1748032053006,0.04089683,178.04,178.03,5.6159]
[1748032065313,0.04089683,178.04,178.0,0.03607181]
[1748032066120,0.04089683,178.04,178.03,5.6159]
[1748032069911,0.04089683,178.04,178.0,0.03607181]
[1748032070310,5.6165,178.01,178.0,0.03607181]
[1748032070610,113.8,178.02,177.94,5.23843148]
[1748032070812,5.6178,177.97,177.94,5.23843148]
[1748032071011,5.6178,177.97,177.94,10.85703148]
[1748032071414,113.8,178.02,177.94,5.23843148]
[1748032071617,0.03725059,178.0,177.96,0.04069204]
[1748032072519,5.65425059,178.0,177.96,0.04069204]
[1748032072718,0.03725059,178.0,177.96,0.04069204]
[1748032073215,5.6175,177.98,177.96,0.04069204]
[1748032075121,5.6172,177.99,177.96,5.65879204]
[1748032075519,0.03725059,178.0,177.96,0.04069204]
[1748032076619,5.65415059,178.0,177.97,5.6178]
[1748032077724,5.65415059,178.0,177.96,5.65869204]
[1748032078226,0.03725059,178.0,177.96,0.04069204]
[1748032078820,5.6177,177.98,177.96,0.04069204]
[1748032079521,5.6174,177.99,177.96,5.65869204]
[1748032080020,0.03725059,178.0,177.98,5.6175]
[1748032080221,0.03725059,178.0,177.96,0.04069204]
[1748032081125,0.03725059,178.0,177.99,5.6171]
[1748032082222,0.03725059,178.0,177.98,5.6174]
[1748032084926,0.03725059,178.0,177.97,5.6176]
[1748032085117,5.65415059,178.0,177.97,5.6176]
[1748032085728,0.03725059,178.0,177.96,0.04069204]
[1748032086223,0.03725059,178.0,177.97,5.6178]
[1748032086726,0.03725059,178.0,177.98,5.6173]
[1748032087728,0.03725059,178.0,177.97,5.6177]
[1748032088632,5.6172,177.99,177.97,5.6177]
[1748032089128,5.6172,177.99,177.96,5.65859204]
[1748032089326,5.6175,177.98,177.96,0.04069204]
[1748032089533,0.03725059,178.0,177.96,0.04069204]
[1748032090126,5.6178,177.97,177.96,0.04069204]
[1748032092429,5.6176,177.98,177.96,0.04069204]
[1748032094634,0.03725059,178.0,177.96,0.04069204]
[1748032095033,5.6178,177.97,177.96,0.04069204]
[1748032098935,5.6176,177.98,177.96,0.04069204]
[1748032099340,0.03725059,178.0,177.96,0.04069204]
[1748032100935,5.6178,177.97,177.96,0.04069204]
[1748032101137,0.03725059,178.0,177.96,0.04069204]
[1748032101537,5.6172,177.99,177.96,0.04069204]
[1748032101849,5.6172,177.99,177.97,5.6177]
[1748032102036,5.6172,177.99,177.96,0.04069204]
[1748032102540,5.6172,177.99,177.96,5.65859204]
[1748032104744,5.6175,177.98,177.96,0.04069204]
[1748032106243,5.6178,177.97,177.96,0.04069204]
[1748032112346,5.6172,177.99,177.96,0.04069204]
[1748032112944,5.6172,177.99,177.96,5.65859204]
[1748032113641,5.6172,177.99,177.97,5.6178]
[1748032114044,5.6172,177.99,177.96,0.04069204]
[1748032114354,5.6172,177.99,177.96,5.65859204]
[1748032115143,5.6172,177.99,177.97,5.6178]
[1748032116347,5.6172,177.99,177.96,5.65869204]
[1748032116544,5.6172,177.99,177.96,0.04069204]
[1748032117539,5.6172,177.99,177.97,5.6178]
[1748032118148,5.16961173,178.0,177.98,5.6174]
[1748032119846,0.03725059,178.0,177.98,5.6174]
[1748032120146,5.65405059,178.0,177.98,5.6174]
[1748032120551,5.65405059,178.0,177.97,5.6177]
[1748032121051,5.6171,177.99,177.96,5.65869204]
[1748032122949,5.6171,177.99,177.97,5.6178]
[1748032124751,5.6171,177.99,177.96,5.65869204]
[1748032128449,5.6171,177.99,177.97,5.6178]
[1748032132257,5.6171,177.99,177.96,5.65869204]
[1748032133256,5.65425059,178.0,177.97,5.6177]
[1748032133660,0.03725059,178.0,177.97,5.6177]
[1748032134156,5.65425059,178.0,177.97,5.6177]
[1748032136259,5.65425059,178.0,177.96,0.04069204]
[1748032136756,5.65425059,178.0,177.97,5.6176]
[1748032141660,5.6173,177.99,177.96,5.65869204]
[1748032142161,5.65425059,178.0,177.97,5.6177]
[1748032144661,5.6172,177.99,177.97,5.6177]
[1748032146361,5.65415059,178.0,177.97,5.6177]
[1748032146560,5.13236114,178.01,177.98,113.09953076]
[1748032146764,6.84520256,178.04,178.0,6.33682438]
[1748032146962,6.84520256,178.04,178.03,11.95272438]
[1748032147864,0.04182425,178.05,178.04,5.6156]
[1748032158275,0.04182425,178.05,178.03,11.95242438]
[1748032159472,0.04182425,178.05,178.04,5.6156]
[1748032163673,0.04182425,178.05,178.03,118.67252438]
[1748032164275,0.04182425,178.05,178.03,113.05682438]
[1748032165584,0.04182425,178.05,178.04,5.6156]
[1748032167485,129.88462822,178.15,178.08,5.6141]
[1748032167685,129.88462822,178.15,178.08,118.67092438]
[1748032167881,5.6131,178.12,178.08,118.67092438]
[1748032168084,5.6131,178.12,178.09,5.6138]
[1748032168287,5.65444559,178.12,178.09,5.65326321]
[1748032169089,0.04134559,178.12,178.1,5.6137]
[1748032169683,0.04134559,178.12,178.11,5.6134]
[1748032171486,0.04134559,178.12,178.11,11.95022438]
[1748032171789,0.04134559,178.12,178.11,6.33682438]
[1748032171996,0.04134559,178.12,178.09,6.37628759]
[1748032172287,0.04134559,178.12,178.09,11.98998759]
[1748032173498,0.04134559,178.12,178.09,113.07628759]
[1748032173902,5.65444559,178.12,178.09,118.69018759]
[1748032174102,0.04134559,178.12,178.09,118.69018759]
[1748032174998,0.04134559,178.12,178.1,5.6136]
[1748032175600,5.65444559,178.12,178.09,118.69018759]
[1748032176099,5.65444559,178.12,178.09,113.07628759]
[1748032176898,5.65444559,178.12,178.09,118.69028759]
[1748032177407,0.04134559,178.12,178.09,113.07628759]
[1748032178201,5.65444559,178.12,178.09,113.07628759]
[1748032178602,5.65444559,178.12,178.09,118.68998759]
[1748032179710,0.04134559,178.12,178.1,5.6136]
[1748032181001,0.04134559,178.12,178.11,5.6134]
[1748032181703,0.04134559,178.12,178.11,11.95022438]
[1748032182205,0.04134559,178.12,178.1,11.95042438]
[1748032182595,0.04134559,178.12,178.1,6.33682438]
[1748032182795,0.04134559,178.12,178.11,5.6134]
[1748032186304,0.04134559,178.12,178.1,11.95042438]
[1748032187907,0.04134559,178.12,178.09,0.03946321]
[1748032188608,5.65454559,178.12,178.09,5.65316321]
[1748032189006,5.65454559,178.12,178.09,0.03946321]
[1748032189611,0.04134559,178.12,178.11,5.6134]
[1748032191214,0.04134559,178.12,178.09,0.03946321]
[1748032191513,0.04134559,178.12,178.1,5.6136]
[1748032192618,5.65444559,178.12,178.1,5.6136]
[1748032193516,5.65444559,178.12,178.09,5.65326321]
[1748032193820,5.6134,178.11,178.09,5.65326321]
[1748032194014,0.04134559,178.12,178.09,5.65326321]
[1748032194717,5.65454559,178.12,178.1,5.6136]
[1748032195216,0.04134559,178.12,178.1,5.6136]
[1748032198318,5.65444559,178.12,178.09,5.65326321]
[1748032199017,5.65444559,178.12,178.1,5.6137]
[1748032200521,0.04134559,178.12,178.1,5.6137]
[1748032200719,0.04134559,178.12,178.09,5.65336321]
[1748032201120,5.65454559,178.12,178.09,5.65336321]
[1748032202520,5.65454559,178.12,178.1,5.6136]
[1748032203522,0.04134559,178.12,178.1,5.6136]
[1748032203723,0.04134559,178.12,178.09,5.65336321]
[1748032203926,0.04134559,178.12,178.09,0.03946321]
[1748032204622,0.04134559,178.12,178.11,5.6134]
[1748032206625,0.04134559,178.12,178.1,11.95042438]
[1748032207221,5.65444559,178.12,178.1,6.33682438]
[1748032207436,5.65444559,178.12,178.09,0.03946321]
[1748032207437,0.04134559,178.12,178.09,0.03946321]